[Event "28th CRO-chT 1B-Men 2019"]
[Site "Mali Losinj"]
[Date "2019.10.03"]
[Round "6.14"]
[White "Rezan, Sasa"]
[Black "Doric, Darko"]
[Result "1/2-1/2"]
[ECO "D26"]
[WhiteElo "2432"]
[BlackElo "2476"]
[Annotator "ChessBase"]
[PlyCount "90"]
[EventDate "2019.09.28"]
[EventType "team-tourn"]
[EventCountry "CRO"]
[SourceTitle "playchess.com"]
[Source "ChessBase"]
[SourceQuality "1"]
[TimeControl "40/5400+30:1800+30"]

1. d4 {[%emt 0:00:30]} d5 {[%emt 0:00:30]} 2. c4 {[%emt 0:00:00]} dxc4 {[%emt 0:00:00]} 3. e3 {[%emt 0:01:00]} e6 {[%emt 0:00:00]} 4. Bxc4 {[%emt 0:01:30]} Nf6 {[%emt 0:00:30]} 5. Nf3 {[%emt 0:00:30]} a6 {[%emt 0:00:00]} 6. a4 {[%emt 0:03:30]} b6 {[%emt 0:00:00]} 7. O-O {[%emt 0:00:30]} Bb7 {[%emt 0:00:30]} 8. Qe2 {[%emt 0:00:30]} Bb4 {[%emt 0:00:30]} 9. Bd3 {[%emt 0:07:30]} c5 {[%emt 0:13:30]} 10. e4 {[%emt 0:07:30]} cxd4 {[%emt 0:01:30]} 11. e5 {[%emt 0:01:30]} Bxf3 {[%emt 0:06:30]} 12. Qxf3 {[%emt 0:00:30]} Nd5 {[%emt 0:00:30]} 13. Qg4 {[%emt 0:03:30]} g6 {[%emt 0:00:30]} 14. Nd2 {[%emt 0:09:30]} Nc6 {[%emt 0:08:30]} 15. Nf3 {[%emt 0:02:30]} Qc7 {[%emt 0:07:30]} 16. Qe4 {[%emt 0:01:30]} Bf8 {[%emt 0:02:30]} 17. Bd2 {[%emt 0:04:30]} Bg7 {[%emt 0:00:30]} 18. Rac1 {[%emt 0:01:30]} Qd7 {[%emt 0:01:30]} 19. h4 {[%emt 0:10:30]} O-O {[%emt 0:03:30]} 20. h5 {[%emt 0:01:30]} Rfc8 {[%emt 0:04:30]} 21. Rc4 {[%emt 0:11:30]} a5 {[%emt 0:07:30]} 22. Re1 {[%emt 0:04:30]} Ndb4 {[%emt 0:14:30]} 23. Bxb4 {[%emt 0:02:30]} Nxb4 {[%emt 0:00:30]} 24. Rxd4 {[%emt 0:00:30]} Qe7 {[%emt 0:06:44]} 25. Rd6 {[%emt 0:04:45]} Rd8 {[%emt 0:01:57]} 26. Bb5 {[%emt 0:00:38]} Rac8 {[%emt 0:02:05]} 27. Rxb6 {[%emt 0:03:07]} gxh5 {[%emt 0:00:48]} 28. Rb7 {[%emt 0:00:20]} Rc7 {[%emt 0:00:06]} 29. Rxc7 {[%emt 0:03:38]} Qxc7 {[%emt 0:00:01]} 30. Qh4 {[%emt 0:00:38]} h6 {[%emt 0:00:43]} 31. Re4 {[%emt 0:02:08]} Rd1+ {[%emt 0:01:56]} 32. Kh2 {[%emt 0:00:18]} Qc1 {[%emt 0:00:45]} 33. Rc4 {[%emt 0:03:24]} Qb1 {[%emt 0:05:57]} 34. Qe4 {[%emt 0:02:47]} Qxe4 {[%emt 0:02:42]} 35. Rxe4 {[%emt 0:00:41]} Rb1 {[%emt 0:00:30]} 36. Rc4 {[%emt 0:00:37]} Rxb2 {[%emt 0:00:30]} 37. Kg3 {[%emt 0:03:29]} h4+ {[%emt 0:01:11]} 38. Rxh4 {[%emt 0:00:23]} Rb3 {[%emt 0:00:53]} 39. Kh2 {[%emt 0:01:00]} Nd3 {[%emt 0:00:54]} 40. Bxd3 {[%emt 0:00:00]} Rxd3 {[%emt 0:00:00]} 41. Re4 {[%emt 0:02:37]} Bf8 {[%emt 0:01:18]} 42. Rg4+ {[%emt 0:05:30]} Kh7 {[%emt 0:00:30]} 43. Rf4 {[%emt 0:00:30]} Kg7 {[%emt 0:00:30]} 44. Rg4+ {[%emt 0:00:30]} Kh7 {[%emt 0:00:00]} 45. Rf4 {[%emt 0:00:00]} Kg6 {[%emt 0:00:00]} 1/2-1/2

[Event "28th CRO-chT 1B-Men 2019"]
[Site "Mali Losinj"]
[Date "2019.10.03"]
[Round "6.16"]
[White "Biliskov, Vjekoslav"]
[Black "Rade, Miroslav"]
[Result "1/2-1/2"]
[ECO "D85"]
[WhiteElo "2333"]
[BlackElo "2390"]
[Annotator "NA RC"]
[PlyCount "45"]
[EventDate "2019.09.28"]
[EventType "team-tourn"]
[EventCountry "CRO"]
[SourceTitle "playchess.com"]
[Source "ChessBase"]
[SourceQuality "1"]
[TimeControl "40/5400+30:1800+30"]

1. d4 {[%emt 0:00:30]} Nf6 {[%emt 0:01:30]} 2. c4 {[%emt 0:00:00]} g6 {[%emt 0:00:00]} 3. Nc3 {[%emt 0:00:00]} d5 {[%emt 0:00:00]} 4. cxd5 {[%emt 0:00:30]} Nxd5 {[%emt 0:00:30]} 5. e4 {[%emt 0:00:30]} Nxc3 {[%emt 0:00:00]} 6. bxc3 {[%emt 0:00:30]} c5 {[%emt 0:00:00]} 7. Bb5+ {[%emt 0:00:30]} Bd7 {[%emt 0:00:00]} 8. Be2 {[%emt 0:00:00]} Bg7 {[%emt 0:00:00]} 9. Nf3 {[%emt 0:00:00]} Bg4 {[%emt 0:00:30]} 10. Qa4+ {[%emt 0:17:30]} Nc6 {[%emt 0:09:30]} 11. e5 {[%emt 0:18:30]} cxd4 {[%emt 0:16:30]} 12. cxd4 {[%emt 0:00:30]} Qd7 {[%emt 0:00:30]} 13. Be3 {[%emt 0:09:30]} Nxe5 {[%emt 0:04:30]} 14. Bb5 {[%emt 0:04:30]} Nc6 {[%emt 0:02:30]} 15. Ne5 {[%emt 0:04:30]} Bxe5 {[%emt 0:00:30]} 16. dxe5 {[%emt 0:00:30]} O-O {[%emt 0:00:00]} 17. O-O {[%emt 0:01:30]} Rfc8 {[%emt 0:04:00]} 18. Rac1 {[%emt 0:02:30]} a6 {[%emt 0:02:30]} 19. Bxc6 {[%emt 0:00:30]} Rxc6 {[%emt 0:00:00]} 20. Rxc6 {[%emt 0:00:30]} bxc6 {[%emt 0:00:00]} 21. Rc1 {[%emt 0:01:30]} Be6 {[%emt 0:07:30]} 22. Rxc6 {[%emt 0:02:30]} Qe8 {[%emt 0:03:30]} 23. Qc2 {[%emt 0:04:30]} 1/2-1/2

[Event "28th CRO-chT 1B-Men 2019"]
[Site "Mali Losinj"]
[Date "2019.10.03"]
[Round "6.17"]
[White "Polok, Kacper"]
[Black "Sinanovic, Muhamed"]
[Result "1-0"]
[ECO "E11"]
[WhiteElo "2301"]
[BlackElo "2312"]
[Annotator "NA"]
[PlyCount "67"]
[EventDate "2019.09.28"]
[EventType "team-tourn"]
[EventCountry "CRO"]
[SourceTitle "playchess.com"]
[Source "ChessBase"]
[SourceQuality "1"]
[TimeControl "40/5400+30:1800+30"]

1. d4 {[%emt 0:00:30]} Nf6 {[%emt 0:00:30]} 2. c4 {[%emt 0:00:30]} e6 {[%emt 0:04:30]} 3. Nf3 {[%emt 0:00:30]} Bb4+ {[%emt 0:00:30]} 4. Nbd2 {[%emt 0:00:30]} O-O {[%emt 0:00:30]} 5. a3 {[%emt 0:00:30]} Be7 {[%emt 0:00:30]} 6. e4 {[%emt 0:02:30]} d6 {[%emt 0:00:30]} 7. Bd3 {[%emt 0:00:30]} Nfd7 {[%emt 0:00:00]} 8. b4 {[%emt 0:01:30]} e5 {[%emt 0:01:00]} 9. d5 {[%emt 0:00:00]} a5 {[%emt 0:02:30]} 10. Bb2 {[%emt 0:02:00]} c5 {[%emt 0:01:30]} 11. b5 {[%emt 0:01:30]} Bg5 {[%emt 0:07:30]} 12. h4 {[%emt 0:09:30]} Bh6 {[%emt 0:01:30]} 13. Qe2 {[%emt 0:13:30]} Nb6 {[%emt 0:06:30]} 14. Nf1 {[%emt 0:16:30]} Na4 {[%emt 0:12:30]} 15. Bc1 {[%emt 0:00:30]} Bxc1 {[%emt 0:00:00]} 16. Rxc1 {[%emt 0:00:00]} Nd7 {[%emt 0:02:00]} 17. Ne3 {[%emt 0:05:00]} Nf6 {[%emt 0:00:30]} 18. Nh2 {[%emt 0:01:30]} Nb6 {[%emt 0:02:30]} 19. O-O {[%emt 0:04:30]} g6 {[%emt 0:06:30]} 20. g4 {[%emt 0:02:30]} Ne8 {[%emt 0:03:30]} 21. Ng2 {[%emt 0:00:30]} Nd7 {[%emt 0:01:30]} 22. Rc3 {[%emt 0:01:30]} h6 {[%emt 0:07:30]} 23. Bc2 {[%emt 0:05:30]} g5 {[%emt 0:01:30]} 24. Rh3 {[%emt 0:01:30]} f6 {[%emt 0:06:30]} 25. Ne3 {[%emt 0:01:30]} Rf7 {[%emt 0:00:30]} 26. Nf5 {[%emt 0:06:30]} Rh7 {[%emt 0:00:30]} 27. hxg5 {[%emt 0:03:13]} hxg5 {[%emt 0:00:00]} 28. Rxh7 {[%emt 0:00:17]} Kxh7 {[%emt 0:00:00]} 29. f4 {[%emt 0:00:30]} Nf8 {[%emt 0:06:30]} 30. fxg5 {[%emt 0:00:38]} fxg5 {[%emt 0:03:30]} 31. Nh6 {[%emt 0:00:58]} Ng6 {[%emt 0:01:30]} 32. Nf7 {[%emt 0:00:13]} Qe7 {[%emt 0:00:30]} 33. Nf3 {[%emt 0:00:17]} Kg7 {[%emt 0:00:30]} 34. N3xg5 {[%emt 0:01:07]} 1-0

[Event "28th CRO-chT 1B-Men 2019"]
[Site "Mali Losinj"]
[Date "2019.10.03"]
[Round "6.18"]
[White "Zelic, Mladen"]
[Black "Ivic, Mateo"]
[Result "1-0"]
[ECO "C32"]
[WhiteElo "2209"]
[BlackElo "2140"]
[Annotator "NA"]
[PlyCount "37"]
[EventDate "2019.09.28"]
[EventType "team-tourn"]
[EventCountry "CRO"]
[SourceTitle "playchess.com"]
[Source "ChessBase"]
[SourceQuality "1"]
[TimeControl "40/5400+30:1800+30"]

1. e4 {[%emt 0:00:30]} e5 {[%emt 0:00:30]} 2. f4 {[%emt 0:00:00]} d5 {[%emt 0:00:30]} 3. exd5 {[%emt 0:00:00]} e4 {[%emt 0:01:30]} 4. d3 {[%emt 0:00:30]} Nf6 {[%emt 0:00:30]} 5. dxe4 {[%emt 0:00:00]} Nxe4 {[%emt 0:00:30]} 6. Nf3 {[%emt 0:00:00]} Bc5 {[%emt 0:00:30]} 7. Qe2 {[%emt 0:00:30]} Bf5 {[%emt 0:03:30]} 8. Nc3 {[%emt 0:01:30]} Qe7 {[%emt 0:00:00]} 9. Be3 {[%emt 0:00:30]} Nd7 {[%emt 0:00:00]} 10. Nxe4 {[%emt 0:16:30]} Bxe4 {[%emt 0:09:30]} 11. Bxc5 {[%emt 0:00:30]} Nxc5 {[%emt 0:00:30]} 12. O-O-O {[%emt 0:00:30]} O-O-O {[%emt 0:00:00]} 13. Ng5 {[%emt 0:09:30]} Kb8 {[%emt 0:21:00]} 14. Qe3 {[%emt 0:07:30]} Rhe8 {[%emt 0:05:30]} 15. Bc4 {[%emt 0:03:30]} Qf6 {[%emt 0:19:30]} 16. Rhe1 {[%emt 0:21:30]} b6 {[%emt 0:24:30]} 17. Bb5 {[%emt 0:05:30]} Re7 {[%emt 0:03:30]} 18. Rd4 {[%emt 0:02:30]} a6 {[%emt 0:05:33]} 19. Bc6 {[%emt 0:01:30]} 1-0

[Event "28th CRO-chT 1B-Men 2019"]
[Site "Mali Losinj"]
[Date "2019.10.03"]
[Round "6.20"]
[White "Kadric, Denis"]
[Black "Postny, Evgeny"]
[Result "0-1"]
[ECO "C55"]
[WhiteElo "2577"]
[BlackElo "2597"]
[Annotator "ChessBase"]
[PlyCount "94"]
[EventDate "2019.09.28"]
[EventType "team-tourn"]
[EventCountry "CRO"]
[SourceTitle "playchess.com"]
[Source "ChessBase"]
[SourceQuality "1"]
[TimeControl "40/5400+30:1800+30"]

1. e4 {[%emt 0:00:30]} e5 {[%emt 0:01:30]} 2. Nf3 {[%emt 0:00:00]} Nc6 {[%emt 0:00:00]} 3. Bc4 {[%emt 0:00:00]} Nf6 {[%emt 0:00:00]} 4. d3 {[%emt 0:00:00]} Be7 {[%emt 0:00:30]} 5. O-O {[%emt 0:00:00]} O-O {[%emt 0:00:00]} 6. a4 {[%emt 0:00:00]} d6 {[%emt 0:00:00]} 7. a5 {[%emt 0:00:00]} Be6 {[%emt 0:01:30]} 8. a6 {[%emt 0:00:30]} b6 {[%emt 0:00:00]} 9. Nc3 {[%emt 0:01:30]} Qc8 {[%emt 0:06:00]} 10. Bg5 {[%emt 0:05:30]} h6 {[%emt 0:16:30]} 11. Bxf6 {[%emt 0:02:30]} Bxf6 {[%emt 0:01:30]} 12. Nd5 {[%emt 0:00:30]} Bd8 {[%emt 0:00:30]} 13. c3 {[%emt 0:07:30]} Rb8 {[%emt 0:03:30]} 14. Qa4 {[%emt 0:14:30]} Na5 {[%emt 0:14:30]} 15. Ba2 {[%emt 0:00:30]} Qd7 {[%emt 0:04:30]} 16. Qxd7 {[%emt 0:06:30]} Bxd7 {[%emt 0:00:30]} 17. b4 {[%emt 0:00:30]} Nc6 {[%emt 0:00:30]} 18. d4 {[%emt 0:00:00]} Re8 {[%emt 0:09:30]} 19. Rfe1 {[%emt 0:00:00]} Rc8 {[%emt 0:05:30]} 20. Rad1 {[%emt 0:03:30]} Nb8 {[%emt 0:04:30]} 21. dxe5 {[%emt 0:00:30]} dxe5 {[%emt 0:00:30]} 22. Ne3 {[%emt 0:00:30]} c6 {[%emt 0:10:19]} 23. Rd3 {[%emt 0:16:30]} Bc7 {[%emt 0:01:17]} 24. Red1 {[%emt 0:00:30]} Rcd8 {[%emt 0:05:37]} 25. Bb3 {[%emt 0:01:30]} Kf8 {[%emt 0:00:56]} 26. Nc4 {[%emt 0:01:30]} Be6 {[%emt 0:01:28]} 27. Nfxe5 {[%emt 0:10:30]} Rxd3 {[%emt 0:01:57]} 28. Nxd3 {[%emt 0:00:00]} Rd8 {[%emt 0:00:53]} 29. Ndb2 {[%emt 0:09:34]} Rxd1+ {[%emt 0:00:25]} 30. Bxd1 {[%emt 0:02:02]} b5 {[%emt 0:02:01]} 31. Na5 {[%emt 0:08:25]} Be5 {[%emt 0:00:12]} 32. Nd3 {[%emt 0:00:02]} Bxc3 {[%emt 0:00:04]} 33. Be2 {[%emt 0:04:21]} Ba2 {[%emt 0:02:40]} 34. Bg4 {[%emt 0:03:24]} Bb1 {[%emt 0:01:27]} 35. Nc5 {[%emt 0:00:02]} Bxb4 {[%emt 0:00:11]} 36. Nab7 {[%emt 0:00:01]} Ke7 {[%emt 0:02:35]} 37. e5 {[%emt 0:00:03]} f6 {[%emt 0:03:38]} 38. f4 {[%emt 0:00:37]} fxe5 {[%emt 0:00:20]} 39. fxe5 {[%emt 0:00:01]} Bc3 {[%emt 0:00:37]} 40. e6 {[%emt 0:00:00]} Bg6 {[%emt 0:00:00]} 41. Kf1 {[%emt 0:01:28]} Bd4 {[%emt 0:06:23]} 42. Ke2 {[%emt 0:04:30]} Bxc5 {[%emt 0:02:30]} 43. Nxc5 {[%emt 0:00:30]} Kd6 {[%emt 0:00:30]} 44. Nb7+ {[%emt 0:00:00]} Kc7 {[%emt 0:02:30]} 45. Nc5 {[%emt 0:00:00]} Kd6 {[%emt 0:04:08]} 46. Nb7+ {[%emt 0:00:30]} Kd5 {[%emt 0:00:05]} 47. e7 {[%emt 0:02:30]} Be8 {[%emt 0:01:24]} 0-1

[Event "28th CRO-chT 1B-Men 2019"]
[Site "Mali Losinj"]
[Date "2019.10.03"]
[Round "6.21"]
[White "Jovanovic, Zoran"]
[Black "Stojanovski, Dejan"]
[Result "1/2-1/2"]
[ECO "B31"]
[WhiteElo "2507"]
[BlackElo "2428"]
[Annotator "ChessBase"]
[PlyCount "35"]
[EventDate "2019.09.28"]
[EventType "team-tourn"]
[EventCountry "CRO"]
[SourceTitle "playchess.com"]
[Source "ChessBase"]
[SourceQuality "1"]
[TimeControl "40/5400+30:1800+30"]

1. e4 {[%emt 0:04:30]} c5 {[%emt 0:00:30]} 2. Nf3 {[%emt 0:00:00]} Nc6 {[%emt 0:00:00]} 3. Bb5 {[%emt 0:00:00]} g6 {[%emt 0:00:00]} 4. O-O {[%emt 0:01:30]} Bg7 {[%emt 0:00:00]} 5. Nc3 {[%emt 0:01:30]} e5 {[%emt 0:03:00]} 6. a3 {[%emt 0:00:30]} Nge7 {[%emt 0:00:30]} 7. b4 {[%emt 0:00:00]} b6 {[%emt 0:01:30]} 8. bxc5 {[%emt 0:06:00]} bxc5 {[%emt 0:00:00]} 9. d3 {[%emt 0:05:30]} O-O {[%emt 0:02:00]} 10. Bc4 {[%emt 0:01:30]} h6 {[%emt 0:09:30]} 11. Rb1 {[%emt 0:09:30]} d6 {[%emt 0:00:30]} 12. Nd5 {[%emt 0:00:30]} Be6 {[%emt 0:13:30]} 13. Bd2 {[%emt 0:11:30]} Rb8 {[%emt 0:14:30]} 14. Rxb8 {[%emt 0:10:30]} Nxb8 {[%emt 0:02:30]} 15. Qb1 {[%emt 0:05:30]} Nxd5 {[%emt 0:11:30]} 16. exd5 {[%emt 0:06:30]} Bg4 {[%emt 0:00:30]} 17. Qb7 {[%emt 0:00:30]} Nd7 {[%emt 0:00:30]} 18. Qxa7 {[%emt 0:00:00]} 1/2-1/2

[Event "28th CRO-chT 1B-Men 2019"]
[Site "Mali Losinj"]
[Date "2019.10.03"]
[Round "6.22"]
[White "Bosnjak, Petar"]
[Black "Bukal, Vladimir Jr."]
[Result "1/2-1/2"]
[ECO "C03"]
[WhiteElo "2265"]
[BlackElo "2390"]
[Annotator "NA"]
[PlyCount "124"]
[EventDate "2019.09.28"]
[EventType "team-tourn"]
[EventCountry "CRO"]
[SourceTitle "playchess.com"]
[Source "ChessBase"]
[SourceQuality "1"]
[TimeControl "40/5400+30:1800+30"]

1. e4 {[%emt 0:00:30]} e6 {[%emt 0:00:30]} 2. d4 {[%emt 0:00:00]} d5 {[%emt 0:00:00]} 3. Nd2 {[%emt 0:00:00]} h6 {[%emt 0:00:00]} 4. Ngf3 {[%emt 0:00:30]} Nf6 {[%emt 0:00:30]} 5. e5 {[%emt 0:00:30]} Nfd7 {[%emt 0:00:00]} 6. Bd3 {[%emt 0:00:30]} c5 {[%emt 0:00:00]} 7. c3 {[%emt 0:00:30]} Nc6 {[%emt 0:00:30]} 8. a3 {[%emt 0:01:30]} cxd4 {[%emt 0:03:30]} 9. cxd4 {[%emt 0:00:00]} Qb6 {[%emt 0:00:30]} 10. O-O {[%emt 0:01:00]} a5 {[%emt 0:04:30]} 11. Qa4 {[%emt 0:19:30]} Be7 {[%emt 0:18:30]} 12. Re1 {[%emt 0:07:30]} g5 {[%emt 0:01:30]} 13. h3 {[%emt 0:05:30]} h5 {[%emt 0:00:30]} 14. g4 {[%emt 0:01:30]} hxg4 {[%emt 0:17:30]} 15. hxg4 {[%emt 0:00:30]} Qd8 {[%emt 0:02:30]} 16. Nf1 {[%emt 0:02:30]} Nb6 {[%emt 0:01:30]} 17. Qd1 {[%emt 0:00:30]} a4 {[%emt 0:01:30]} 18. Ng3 {[%emt 0:06:30]} Na5 {[%emt 0:03:30]} 19. Kg2 {[%emt 0:04:30]} Nb3 {[%emt 0:00:30]} 20. Rb1 {[%emt 0:01:30]} Kd7 {[%emt 0:17:30]} 21. Qc2 {[%emt 0:07:30]} Ra5 {[%emt 0:05:30]} 22. Be3 {[%emt 0:07:30]} Nc4 {[%emt 0:01:01]} 23. Rh1 {[%emt 0:18:04]} b6 {[%emt 0:04:58]} 24. Rxh8 {[%emt 0:00:22]} Qxh8 {[%emt 0:00:04]} 25. Nf1 {[%emt 0:01:47]} Ba6 {[%emt 0:05:14]} 26. N1d2 {[%emt 0:01:49]} Nbxd2 {[%emt 0:00:44]} 27. Bxd2 {[%emt 0:01:11]} Nxd2 {[%emt 0:01:23]} 28. Qxd2 {[%emt 0:00:20]} Bxd3 {[%emt 0:05:13]} 29. Qxd3 {[%emt 0:00:05]} Qc8 {[%emt 0:01:26]} 30. Qh7 {[%emt 0:01:22]} Qf8 {[%emt 0:00:57]} 31. Rc1 {[%emt 0:00:38]} Ra7 {[%emt 0:01:11]} 32. Qd3 {[%emt 0:02:35]} Qb8 {[%emt 0:00:09]} 33. Qb5+ {[%emt 0:00:11]} Kd8 {[%emt 0:00:02]} 34. Rh1 {[%emt 0:00:18]} Kc7 {[%emt 0:00:57]} 35. Rc1+ {[%emt 0:02:28]} Kd8 {[%emt 0:00:02]} 36. Rh1 {[%emt 0:02:33]} Kc7 {[%emt 0:00:06]} 37. Qd3 {[%emt 0:03:56]} Qe8 {[%emt 0:01:54]} 38. Rh5 {[%emt 0:00:13]} Qg8 {[%emt 0:01:08]} 39. Qd2 {[%emt 0:00:20]} Kb8 {[%emt 0:01:19]} 40. Nxg5 {[%emt 0:00:00]} Rc7 {[%emt 0:00:00]} 41. Qf4 {[%emt 0:07:18]} Bd8 {[%emt 0:06:12]} 42. Kg3 {[%emt 0:07:15]} Kb7 {[%emt 0:00:30]} 43. Qd2 {[%emt 0:01:24]} Qg6 {[%emt 0:03:30]} 44. Nf3 {[%emt 0:01:37]} Rc2 {[%emt 0:01:30]} 45. Qb4 {[%emt 0:00:39]} f5 {[%emt 0:03:26]} 46. exf6 {[%emt 0:05:14]} Bc7+ {[%emt 0:00:17]} 47. Re5 {[%emt 0:00:11]} Qxf6 {[%emt 0:01:19]} 48. Qxa4 {[%emt 0:01:37]} Bxe5+ {[%emt 0:00:21]} 49. dxe5 {[%emt 0:00:12]} Qg6 {[%emt 0:00:22]} 50. Qd7+ {[%emt 0:01:55]} Rc7 {[%emt 0:00:32]} 51. Qd6 {[%emt 0:00:16]} Rc4 {[%emt 0:02:30]} 52. Qe7+ {[%emt 0:01:14]} Ka6 {[%emt 0:03:12]} 53. Qg5 {[%emt 0:00:36]} Qe4 {[%emt 0:08:49]} 54. Nd2 {[%emt 0:00:33]} Qd3+ {[%emt 0:00:09]} 55. Qe3 {[%emt 0:00:08]} Qxe3+ {[%emt 0:00:39]} 56. fxe3 {[%emt 0:00:03]} Rc8 {[%emt 0:01:23]} 57. Nf3 {[%emt 0:04:19]} Kb5 {[%emt 0:00:26]} 58. b3 {[%emt 0:00:31]} Kc6 {[%emt 0:00:20]} 59. Nd4+ {[%emt 0:01:40]} Kd7 {[%emt 0:00:05]} 60. Kf3 {[%emt 0:00:36]} Rc3 {[%emt 0:01:29]} 61. a4 {[%emt 0:01:00]} Ke7 {[%emt 0:00:20]} 62. Ke2 {[%emt 0:00:53]} Rc1 {[%emt 0:01:14]} 1/2-1/2

[Event "28th CRO-chT 1B-Men 2019"]
[Site "Mali Losinj"]
[Date "2019.10.04"]
[Round "7.1"]
[White "Brkic, Ante"]
[Black "Sedlak, Nikola"]
[Result "1/2-1/2"]
[ECO "C79"]
[WhiteElo "2600"]
[BlackElo "2557"]
[Annotator "ChessBase"]
[PlyCount "101"]
[EventDate "2019.09.28"]
[EventType "team-tourn"]
[EventCountry "CRO"]
[SourceTitle "playchess.com"]
[Source "ChessBase"]
[SourceQuality "1"]
[TimeControl "40/5400+30:1800+30"]

1. e4 {[%emt 0:00:30]} e5 {[%emt 0:00:30]} 2. Nf3 {[%emt 0:00:00]} Nc6 {[%emt 0:00:00]} 3. Bb5 {[%emt 0:01:00]} a6 {[%emt 0:00:00]} 4. Ba4 {[%emt 0:00:00]} d6 {[%emt 0:02:30]} 5. O-O {[%emt 0:00:00]} Bd7 {[%emt 0:00:30]} 6. c3 {[%emt 0:00:30]} g6 {[%emt 0:00:30]} 7. d4 {[%emt 0:00:30]} Bg7 {[%emt 0:00:00]} 8. Re1 {[%emt 0:00:00]} Nf6 {[%emt 0:02:00]} 9. h3 {[%emt 0:00:00]} O-O {[%emt 0:00:30]} 10. Bc2 {[%emt 0:00:30]} Nh5 {[%emt 0:01:30]} 11. Be3 {[%emt 0:03:30]} Qe8 {[%emt 0:11:30]} 12. Nbd2 {[%emt 0:03:30]} Kh8 {[%emt 0:01:30]} 13. Nb3 {[%emt 0:32:30]} a5 {[%emt 0:02:30]} 14. dxe5 {[%emt 0:04:30]} a4 {[%emt 0:01:30]} 15. Nbd2 {[%emt 0:04:30]} Nxe5 {[%emt 0:01:30]} 16. a3 {[%emt 0:07:30]} f5 {[%emt 0:11:30]} 17. exf5 {[%emt 0:09:30]} gxf5 {[%emt 0:00:30]} 18. Nxe5 {[%emt 0:02:30]} dxe5 {[%emt 0:01:30]} 19. f4 {[%emt 0:00:00]} Bc6 {[%emt 0:05:30]} 20. fxe5 {[%emt 0:08:00]} Rd8 {[%emt 0:01:30]} 21. Qe2 {[%emt 0:01:52]} f4 {[%emt 0:02:30]} 22. Bd4 {[%emt 0:00:43]} f3 {[%emt 0:06:30]} 23. Qd3 {[%emt 0:04:19]} f2+ {[%emt 0:00:30]} 24. Kh2 {[%emt 0:00:01]} Qg6 {[%emt 0:00:00]} 25. Qxg6 {[%emt 0:00:22]} hxg6 {[%emt 0:00:00]} 26. Red1 {[%emt 0:02:01]} Bb5 {[%emt 0:05:30]} 27. Nf3 {[%emt 0:03:10]} Be2 {[%emt 0:12:30]} 28. Bxf2 {[%emt 0:04:30]} Bxd1 {[%emt 0:02:30]} 29. Rxd1 {[%emt 0:00:30]} Rxd1 {[%emt 0:00:30]} 30. Bxd1 {[%emt 0:00:30]} Bxe5+ {[%emt 0:03:30]} 31. Kg1 {[%emt 0:00:00]} Bf4 {[%emt 0:01:30]} 32. Bxa4 {[%emt 0:00:18]} Bc1 {[%emt 0:00:30]} 33. Bc5 {[%emt 0:08:05]} Rd8 {[%emt 0:01:30]} 34. Bc2 {[%emt 0:00:23]} Bxb2 {[%emt 0:01:30]} 35. Bd4+ {[%emt 0:00:43]} Kg8 {[%emt 0:00:30]} 36. Be5 {[%emt 0:00:09]} Kf7 {[%emt 0:09:06]} 37. Bxc7 {[%emt 0:00:42]} Rc8 {[%emt 0:00:23]} 38. Be5 {[%emt 0:00:16]} Bxc3 {[%emt 0:00:24]} 39. Be4 {[%emt 0:01:18]} Bxe5 {[%emt 0:01:38]} 40. Nxe5+ {[%emt 0:00:00]} Ke6 {[%emt 0:00:00]} 41. Nxg6 {[%emt 0:02:38]} Kf6 {[%emt 0:05:29]} 42. Kf2 {[%emt 0:04:30]} Rc3 {[%emt 0:02:30]} 43. g4 {[%emt 0:04:30]} Ng3 {[%emt 0:03:30]} 44. Bxb7 {[%emt 0:01:30]} Kxg6 {[%emt 0:00:30]} 45. Bf3 {[%emt 0:00:00]} Nf1 {[%emt 0:01:30]} 46. Be4+ {[%emt 0:00:00]} Kg5 {[%emt 0:00:00]} 47. Kxf1 {[%emt 0:00:30]} Rxh3 {[%emt 0:00:00]} 48. Bf5 {[%emt 0:00:30]} Rxa3 {[%emt 0:00:30]} 49. Ke2 {[%emt 0:00:00]} Rg3 {[%emt 0:00:00]} 50. Kd2 {[%emt 0:01:00]} Rxg4 {[%emt 0:00:00]} 51. Bxg4 {[%emt 0:00:30]} 1/2-1/2

[Event "28th CRO-chT 1B-Men 2019"]
[Site "Mali Losinj"]
[Date "2019.10.04"]
[Round "7.2"]
[White "Nikcevic, Nebojsa"]
[Black "Kadric, Denis"]
[Result "0-1"]
[ECO "E94"]
[WhiteElo "2415"]
[BlackElo "2577"]
[Annotator "ChessBase"]
[PlyCount "80"]
[EventDate "2019.09.28"]
[EventType "team-tourn"]
[EventCountry "CRO"]
[SourceTitle "playchess.com"]
[Source "ChessBase"]
[SourceQuality "1"]
[TimeControl "40/5400+30:1800+30"]

1. d4 {[%emt 0:01:30]} d6 {[%emt 0:00:30]} 2. Nf3 {[%emt 0:00:30]} g6 {[%emt 0:00:00]} 3. c4 {[%emt 0:00:00]} Bg7 {[%emt 0:00:00]} 4. Nc3 {[%emt 0:01:00]} Nd7 {[%emt 0:00:00]} 5. e4 {[%emt 0:00:30]} e5 {[%emt 0:00:00]} 6. Be2 {[%emt 0:00:00]} Ngf6 {[%emt 0:00:00]} 7. dxe5 {[%emt 0:03:00]} dxe5 {[%emt 0:00:00]} 8. O-O {[%emt 0:00:30]} O-O {[%emt 0:00:00]} 9. Qc2 {[%emt 0:00:00]} c6 {[%emt 0:00:00]} 10. Be3 {[%emt 0:01:00]} Qe7 {[%emt 0:01:30]} 11. Rfd1 {[%emt 0:01:30]} Ng4 {[%emt 0:05:30]} 12. Bg5 {[%emt 0:02:30]} f6 {[%emt 0:00:00]} 13. Bd2 {[%emt 0:07:30]} f5 {[%emt 0:01:00]} 14. exf5 {[%emt 0:02:30]} gxf5 {[%emt 0:00:30]} 15. h3 {[%emt 0:00:30]} e4 {[%emt 0:05:30]} 16. hxg4 {[%emt 0:09:30]} exf3 {[%emt 0:00:30]} 17. Bxf3 {[%emt 0:02:30]} Ne5 {[%emt 0:00:00]} 18. g5 {[%emt 0:14:30]} Nxf3+ {[%emt 0:00:00]} 19. gxf3 {[%emt 0:00:30]} f4 {[%emt 0:00:00]} 20. Ne4 {[%emt 0:00:30]} Bf5 {[%emt 0:06:00]} 21. Re1 {[%emt 0:01:30]} Bxe4 {[%emt 0:04:30]} 22. Qxe4 {[%emt 0:01:30]} Qxg5+ {[%emt 0:00:00]} 23. Kf1 {[%emt 0:00:00]} Qh5 {[%emt 0:01:00]} 24. Qe6+ {[%emt 0:10:00]} Kh8 {[%emt 0:00:30]} 25. Qg4 {[%emt 0:00:30]} Qh1+ {[%emt 0:12:30]} 26. Ke2 {[%emt 0:00:30]} Qh2 {[%emt 0:07:30]} 27. Rg1 {[%emt 0:04:30]} Rae8+ {[%emt 0:03:30]} 28. Kf1 {[%emt 0:02:30]} Bxb2 {[%emt 0:01:30]} 29. Re1 {[%emt 0:04:30]} Rd8 {[%emt 0:01:30]} 30. Rg2 {[%emt 0:02:30]} Qh6 {[%emt 0:05:30]} 31. Re6 {[%emt 0:05:30]} Rf6 {[%emt 0:00:30]} 32. Rxf6 {[%emt 0:05:28]} Qxf6 {[%emt 0:06:30]} 33. Bxf4 {[%emt 0:09:47]} Rf8 {[%emt 0:16:30]} 34. Be3 {[%emt 0:00:08]} Qxf3 {[%emt 0:01:30]} 35. Qxf3 {[%emt 0:05:52]} Rxf3 {[%emt 0:00:00]} 36. Bxa7 {[%emt 0:00:17]} Ra3 {[%emt 0:04:00]} 37. f4 {[%emt 0:00:18]} Bf6 {[%emt 0:00:30]} 38. Bb8 {[%emt 0:02:15]} Rc3 {[%emt 0:00:30]} 39. Be5 {[%emt 0:00:54]} Bxe5 {[%emt 0:00:30]} 40. fxe5 {[%emt 0:00:00]} Rc1+ {[%emt 0:00:00]} 0-1